bitfinex/quotes_BTCUSD_20240723
["timestamp","ask_amount","ask_price","bid_price","bid_amount"]
[1721740099482,1.1573825,66535.0,66534.0,0.14901991]
[1721740099678,1.1583825,66535.0,66534.0,0.14701991]
[1721740099938,1.4589755,66535.0,66534.0,0.14701991]
[1721740100101,1.1593825,66535.0,66534.0,0.14901991]
[1721740100302,1.054075,66535.0,66534.0,0.14901991]
[1721740100673,1.053075,66535.0,66534.0,0.14701991]
[1721740101020,1.052075,66535.0,66534.0,0.14701991]
[1721740101242,1.055075,66535.0,66534.0,0.14701991]
[1721740101442,0.754482,66535.0,66534.0,0.22610068]
[1721740101598,0.751482,66535.0,66534.0,0.23348475]
[1721740102789,0.751482,66535.0,66534.0,0.22610068]
[1721740103271,0.450889,66535.0,66534.0,0.22610068]
[1721740103676,0.150296,66535.0,66534.0,0.29250068]
[1721740103882,0.150296,66535.0,66534.0,0.29450068]
[1721740104087,0.150292,66537.0,66534.0,0.29450068]
[1721740104336,0.150294,66537.0,66536.0,0.0613]
[1721740104589,0.450878,66537.0,66536.0,0.20850068]
[1721740105331,0.751462,66537.0,66536.0,0.20850068]
[1721740105604,1.1116677,66537.0,66536.0,0.20850068]
[1721740105866,1.1126677,66537.0,66536.0,0.14720068]
[1721740106521,1.1126677,66537.0,66536.0,0.14920068]
[1721740106853,1.053046,66537.0,66536.0,0.14920068]
[1721740107260,0.752462,66537.0,66536.0,0.14920068]
[1721740107689,0.752462,66537.0,66536.0,0.28660068]
[1721740107690,0.451876,66537.0,66536.0,0.28660068]
[1721740107840,0.151292,66537.0,66536.0,0.28660068]
[1721740108232,0.451876,66537.0,66536.0,0.28660068]
[1721740109054,0.151292,66537.0,66536.0,0.28660068]
[1721740109336,0.001,66537.0,66536.0,0.28660068]
[1721740109569,0.001,66537.0,66536.0,0.30960068]
[1721740109783,0.001,66537.0,66536.0,0.43445148]
[1721740111591,0.150288,66539.0,66536.0,0.43245148]
[1721740111795,0.150288,66539.0,66538.0,0.14701991]
[1721740112006,0.300564,66542.0,66538.0,0.14701991]
[1721740112213,0.150286,66540.0,66539.0,0.14701991]
[1721740112863,0.150286,66540.0,66539.0,0.14720068]
[1721740113277,0.751428,66540.0,66539.0,0.14720068]
[1721740113481,0.450857,66540.0,66539.0,0.14720068]
[1721740113686,0.8266689,66540.0,66539.0,0.14720068]
[1721740113887,0.751428,66540.0,66539.0,0.14720068]
[1721740114488,1.051999,66540.0,66539.0,0.14720068]
[1721740114994,1.053999,66540.0,66539.0,0.15820068]
[1721740115206,1.053999,66540.0,66539.0,0.15801991]
[1721740115422,1.052999,66540.0,66539.0,0.15301991]
[1721740115632,1.051999,66540.0,66539.0,0.14701991]
[1721740116054,1.051999,66540.0,66539.0,0.15220068]
[1721740116055,1.08354567,66540.0,66539.0,0.15220068]
[1721740116209,1.051999,66540.0,66539.0,0.15101991]
[1721740116734,1.051999,66540.0,66539.0,0.14701991]
[1721740117227,1.052999,66540.0,66539.0,0.15201991]
[1721740117448,1.14617806,66540.0,66539.0,0.15201991]
[1721740117640,1.052999,66540.0,66539.0,0.15201991]
[1721740118041,1.053999,66540.0,66539.0,0.15701991]
[1721740118624,1.051999,66540.0,66539.0,0.14701991]
[1721740119037,1.052999,66540.0,66539.0,0.15601991]
[1721740119238,1.052999,66540.0,66539.0,0.15101991]
[1721740119616,1.053999,66540.0,66539.0,0.15201991]
[1721740119822,1.052999,66540.0,66539.0,0.14701991]
[1721740120025,1.053999,66540.0,66539.0,0.15701991]
[1721740120227,1.053999,66540.0,66539.0,0.01]
[1721740120228,1.394528,66540.0,66539.0,0.01]
[1721740120408,1.393528,66540.0,66539.0,0.005]
[1721740121210,1.052107,66533.0,66532.0,0.06198077]
[1721740121457,1.052107,66533.0,66532.0,0.36360597]
[1721740121666,1.352709,66533.0,66532.0,0.30180597]
[1721740121870,0.751607,66524.0,66523.0,0.00018077]
[1721740122068,1.05225,66524.0,66523.0,0.27190079]
[1721740122445,0.0769,66525.0,66522.0,0.02992081]
[1721740122446,0.751617,66523.0,66522.0,0.02992081]
[1721740122644,0.751617,66523.0,66517.0,0.00018077]
[1721740122645,0.451005,66518.0,66517.0,0.00018077]
[1721740122864,1.052345,66518.0,66517.0,0.27210227]
[1721740123521,1.052345,66518.0,66517.0,0.14720068]
[1721740123723,1.052345,66518.0,66517.0,0.27210081]
[1721740124449,0.150335,66518.0,66517.0,0.41750081]
[1721740124673,0.451005,66518.0,66517.0,0.41750081]
[1721740125077,0.451005,66518.0,66517.0,0.41748752]
[1721740125531,0.451005,66518.0,66517.0,0.42048752]
[1721740125679,0.751675,66518.0,66517.0,0.42048752]
[1721740125905,0.751675,66518.0,66517.0,0.41748752]
[1721740126105,0.8569082,66518.0,66517.0,0.41748752]
[1721740126336,0.752675,66518.0,66517.0,0.42248752]
[1721740126579,0.752675,66518.0,66517.0,0.42648752]
[1721740126746,0.752675,66518.0,66517.0,0.34408752]
[1721740126909,1.053345,66518.0,66517.0,0.34408752]
[1721740127136,1.1586795,66518.0,66517.0,0.34008752]
[1721740127310,1.1586795,66518.0,66517.0,0.34508752]
[1721740127556,1.1596795,66518.0,66517.0,0.34508752]
[1721740128183,1.1596795,66518.0,66517.0,0.34508983]
[1721740129194,1.1596795,66518.0,66517.0,0.34509729]
[1721740129404,1.054345,66518.0,66517.0,0.22020068]
[1721740129612,1.054345,66518.0,66517.0,0.34509729]
[1721740129814,1.054185,66518.0,66517.0,0.34009729]
[1721740129963,1.1676535,66518.0,66517.0,0.34409729]
[1721740130484,1.1676535,66518.0,66517.0,0.34009729]
[1721740130665,1.1686535,66518.0,66517.0,0.28209729]
[1721740130866,1.1676535,66518.0,66517.0,0.27709729]
[1721740131290,1.1676535,66518.0,66517.0,0.27209584]
[1721740131291,1.1666535,66518.0,66517.0,0.27209584]
[1721740131489,1.053185,66518.0,66517.0,0.39698757]
[1721740131666,1.053185,66518.0,66517.0,0.39998757]
[1721740132219,1.054185,66518.0,66517.0,0.40198757]
[1721740132644,1.16707833,66518.0,66517.0,0.40198757]
[1721740132855,1.054185,66518.0,66517.0,0.40698757]
[1721740133037,1.055185,66518.0,66517.0,0.40698757]
[1721740133255,1.055185,66518.0,66517.0,0.28209584]
[1721740133728,1.15238434,66518.0,66517.0,0.28209584]
[1721740133940,1.15238434,66518.0,66517.0,0.28191507]
[1721740134164,1.15138434,66518.0,66517.0,0.27691507]
[1721740134584,1.15138434,66518.0,66517.0,0.27191507]
[1721740134585,1.15038434,66518.0,66517.0,0.27191507]
[1721740135021,1.15038434,66518.0,66517.0,0.27491507]
[1721740135481,1.15038434,66518.0,66517.0,0.27191507]
[1721740135689,1.053185,66518.0,66517.0,0.27591507]
[1721740136314,1.053185,66518.0,66517.0,0.27991507]
[1721740136512,1.053185,66518.0,66517.0,0.27591507]
[1721740136719,1.053185,66518.0,66517.0,0.27191507]
[1721740136867,1.054185,66518.0,66517.0,0.27691507]
[1721740137077,1.1676535,66518.0,66517.0,0.27691507]
[1721740137665,1.054185,66518.0,66517.0,0.27691507]
[1721740137874,0.452845,66518.0,66517.0,0.26709584]
[1721740138185,0.753515,66518.0,66517.0,0.26709584]
[1721740139208,0.753515,66518.0,66517.0,0.39198581]
[1721740139889,0.754515,66518.0,66517.0,0.39698581]
[1721740140867,0.754515,66518.0,66517.0,0.27209584]
[1721740141125,0.00284,66518.0,66517.0,0.54378536]
[1721740141427,0.00184,66518.0,66517.0,0.56178536]
[1721740141568,0.753515,66518.0,66517.0,0.53878536]
[1721740141770,0.453845,66518.0,66517.0,0.54378536]
[1721740142178,0.00184,66518.0,66517.0,0.53878536]
[1721740142377,0.00084,66518.0,66517.0,0.53378536]
[1721740142651,0.00284,66518.0,66517.0,0.54378536]
[1721740142800,0.00184,66518.0,66517.0,0.53878536]
[1721740143015,0.00184,66518.0,66517.0,0.71212236]
[1721740143180,0.00184,66518.0,66517.0,1.01279736]
[1721740143372,0.00084,66518.0,66517.0,0.70712236]
[1721740143619,0.00084,66518.0,66517.0,1.00779736]
[1721740143815,0.00184,66518.0,66517.0,0.88790784]
[1721740144021,0.00184,66518.0,66517.0,1.01278894]
[1721740144336,0.00184,66518.0,66517.0,0.71211394]
[1721740144536,0.00084,66518.0,66517.0,0.71211394]
[1721740144841,0.00184,66518.0,66517.0,0.71711394]
[1721740145170,0.00165904,66518.0,66517.0,0.71711394]
[1721740146156,0.00165904,66518.0,66517.0,0.56677694]
[1721740146355,0.00165904,66518.0,66517.0,0.71711394]
[1721740147149,0.00165904,66518.0,66517.0,0.71711014]
[1721740148539,0.00165904,66518.0,66517.0,0.59221498]
[1721740148743,0.00165904,66518.0,66517.0,0.89288998]
[1721740148947,0.00165904,66518.0,66517.0,1.07047317]
[1721740150008,0.00165904,66518.0,66517.0,1.37114817]
[1721740150215,0.00165904,66518.0,66517.0,1.42089647]
[1721740150420,0.00165904,66518.0,66517.0,1.37089647]
[1721740150788,0.00165904,66518.0,66517.0,1.67157147]
[1721740151014,0.00165904,66518.0,66517.0,1.37089647]
[1721740151375,0.00165904,66518.0,66517.0,1.42089647]
[1721740151927,0.00165904,66518.0,66517.0,1.67157147]
[1721740152130,0.00165904,66518.0,66517.0,1.37089647]
[1721740152572,0.00165904,66518.0,66517.0,1.67157147]
[1721740152768,0.00165904,66518.0,66517.0,1.72157147]
[1721740153391,0.00165904,66518.0,66517.0,1.72082643]
[1721740155164,0.150297,66535.0,66529.0,0.15049077]
[1721740155377,0.150302,66533.0,66530.0,0.33726514]
[1721740155573,0.150302,66533.0,66532.0,0.00018077]
[1721740155793,0.150302,66533.0,66532.0,0.27206514]
[1721740156458,0.150299,66534.0,66532.0,0.14720068]
[1721740156664,0.526081,66537.0,66536.0,0.00018077]
[1721740156875,0.526081,66537.0,66536.0,0.30198434]
[1721740157262,0.775862,66542.0,66537.0,0.00018077]
[1721740157263,0.450871,66538.0,66537.0,0.00018077]
[1721740157465,0.150291,66538.0,66537.0,0.27206353]
[1721740158865,0.450871,66538.0,66537.0,0.27206353]
[1721740159243,0.751451,66538.0,66537.0,0.27706353]
[1721740159454,0.450871,66538.0,66537.0,0.27706353]
[1721740159806,0.15029,66538.0,66537.0,0.28205679]
[1721740160357,0.15029,66538.0,66537.0,0.28206003]
[1721740160760,0.45087,66538.0,66537.0,0.28206003]
[1721740161792,0.450863,66539.0,66538.0,0.00018077]
[1721740161959,0.450863,66539.0,66538.0,0.27206003]
[1721740162595,0.751438,66539.0,66538.0,0.27206003]
[1721740163031,1.052013,66539.0,66538.0,0.14701991]
[1721740163245,1.052013,66539.0,66538.0,0.18494072]
[1721740163446,1.32812426,66539.0,66538.0,0.008]
[1721740163672,1.79020726,66539.0,66538.0,0.008]
[1721740163871,1.89020726,66539.0,66538.0,0.008]
[1721740164127,1.77851849,66539.0,66538.0,0.008]
[1721740164391,2.12909349,66539.0,66538.0,0.008]
[1721740165146,2.17909349,66539.0,66538.0,0.004]
[1721740165353,2.07909349,66539.0,66538.0,0.004]
[1721740165552,0.751595,66525.0,66524.0,0.00018077]
[1721740165819,0.751595,66525.0,66524.0,0.14720068]
[1721740166031,1.052233,66525.0,66524.0,0.14720068]
[1721740166204,1.052233,66525.0,66524.0,0.27208704]
[1721740166789,0.751595,66525.0,66524.0,0.27208704]
[1721740167044,0.752595,66525.0,66524.0,0.27208704]
[1721740167376,0.751595,66525.0,66524.0,0.27208704]
[1721740169036,0.751595,66525.0,66524.0,0.2760831]
[1721740169174,0.753595,66525.0,66524.0,0.2720831]
[1721740170434,0.753595,66525.0,66524.0,0.2780831]
[1721740170435,0.752595,66525.0,66524.0,0.2780831]
[1721740170638,0.752595,66525.0,66524.0,0.2850831]
[1721740170881,0.001,66525.0,66524.0,0.4304831]
[1721740171089,0.151319,66525.0,66524.0,0.4534831]
[1721740171844,0.001,66525.0,66524.0,0.4534831]
[1721740172044,0.001,66525.0,66524.0,0.32860068]
[1721740172282,0.001,66525.0,66524.0,0.45346668]
[1721740174423,0.151319,66525.0,66524.0,0.45346668]
[1721740174644,0.001,66525.0,66524.0,0.45346668]
[1721740175272,0.001,66525.0,66524.0,0.45346724]
[1721740175940,0.001,66525.0,66524.0,1.20507424]
[1721740176147,0.001,66525.0,66524.0,1.37893667]
[1721740176575,0.001,66525.0,66524.0,1.67957967]
[1721740177384,0.001,66525.0,66524.0,1.72957967]
[1721740178172,0.001,66525.0,66524.0,1.72919055]
[1721740179496,0.001,66525.0,66524.0,1.82919055]
[1721740179698,0.001,66525.0,66524.0,2.12983355]
[1721740179907,0.44093655,66550.0,66549.0,0.51627577]
[1721740180153,0.44093655,66550.0,66549.0,0.39027263]
[1721740180352,0.44093655,66550.0,66549.0,0.84106763]
[1721740180353,0.04914913,66550.0,66549.0,0.84106763]
[1721740180686,0.0803,66557.0,66549.0,0.39027263]
[1721740180687,0.300499,66556.0,66549.0,0.39027263]
[1721740180894,0.150254,66554.0,66551.0,0.14701991]
[1721740181027,0.300503,66555.0,66554.0,0.00018077]
[1721740181228,0.450754,66555.0,66554.0,0.27201953]
[1721740181429,0.751257,66555.0,66554.0,0.27201953]
[1721740181659,0.895157,66555.0,66554.0,0.27183876]
[1721740181833,1.19566,66555.0,66554.0,0.14701991]
[1721740182036,1.19566,66555.0,66549.0,0.02992081]
[1721740182037,1.195737,66550.0,66549.0,0.02992081]
[1721740182237,1.56975142,66550.0,66549.0,0.02992081]
[1721740182672,1.54097601,66550.0,66549.0,0.02992081]
[1721740183073,1.54097601,66550.0,66549.0,0.05792081]
[1721740183249,1.54097601,66550.0,66549.0,0.04392081]
[1721740183457,1.54097601,66550.0,66549.0,0.02992081]
[1721740183458,1.68793866,66550.0,66549.0,0.02992081]
[1721740184315,1.64322465,66550.0,66549.0,0.02992081]
[1721740184533,1.99146366,66550.0,66549.0,0.02992081]
[1721740184952,2.01382067,66550.0,66549.0,0.02992081]
[1721740185387,2.06382067,66550.0,66549.0,0.02992081]
[1721740185533,0.895337,66539.0,66538.0,0.02992081]
[1721740185712,1.195912,66539.0,66538.0,0.14701991]
[1721740185912,1.496487,66539.0,66538.0,0.14701991]
[1721740186567,1.195912,66539.0,66538.0,0.14701991]
[1721740186761,1.133212,66539.0,66538.0,0.15401991]
[1721740187441,1.133212,66539.0,66538.0,0.15501991]
[1721740187651,1.133212,66539.0,66538.0,0.14720068]
[1721740188560,1.133212,66539.0,66538.0,0.14701991]
[1721740188901,1.133212,66539.0,66538.0,0.14720068]
[1721740189077,1.133212,66539.0,66538.0,0.15120068]
[1721740189278,1.133212,66539.0,66538.0,0.14720068]
[1721740189483,1.133212,66539.0,66538.0,0.15020068]
[1721740189685,1.133212,66539.0,66538.0,0.15220068]
[1721740190056,1.133212,66539.0,66538.0,0.14901991]
[1721740190258,1.133212,66539.0,66535.0,0.03010158]
[1721740190259,1.052061,66536.0,66535.0,0.02992081]
[1721740190465,0.450916,66531.0,66530.0,0.00018077]
[1721740190683,1.052138,66531.0,66530.0,0.17712149]
[1721740191096,1.052138,66531.0,66530.0,0.17694072]
[1721740191671,1.052138,66531.0,66530.0,0.17712149]
[1721740192192,1.052138,66531.0,66530.0,0.17694072]
[1721740193323,1.352749,66531.0,66530.0,0.17694072]
[1721740193474,1.052138,66531.0,66530.0,0.17694072]
[1721740193685,1.052138,66531.0,66530.0,0.17994072]
[1721740194019,1.052138,66531.0,66530.0,0.18294072]
[1721740194360,1.48307555,66531.0,66530.0,0.18294072]
[1721740194769,1.52776656,66531.0,66530.0,0.18294072]
[1721740194978,1.352749,66531.0,66530.0,0.18294072]
[1721740195174,1.052138,66531.0,66530.0,0.18294072]
[1721740195478,1.134238,66531.0,66530.0,0.006]
[1721740195685,1.56558551,66531.0,66530.0,0.006]
[1721740195888,1.74551165,66531.0,66530.0,0.006]
[1721740196461,1.052296,66521.0,66520.0,0.00018077]
[1721740196641,1.052296,66521.0,66520.0,0.17712149]
[1721740197243,1.352952,66521.0,66520.0,0.17694072]
[1721740197467,1.496352,66521.0,66520.0,0.17694072]
[1721740197813,1.5264351,66521.0,66520.0,0.17694072]
[1721740198010,1.5264351,66521.0,66520.0,0.18194072]
[1721740198310,1.496352,66521.0,66520.0,0.18194072]
[1721740198879,1.496352,66521.0,66520.0,0.18794072]
[1721740199896,1.496352,66521.0,66520.0,0.18294072]
[1721740200101,1.496352,66521.0,66520.0,0.02992081]
[1721740200307,1.496352,66521.0,66520.0,0.03192081]
[1721740200539,1.496352,66521.0,66520.0,0.03392081]
[1721740200735,1.496352,66521.0,66520.0,0.03192081]
[1721740201315,1.352992,66519.0,66518.0,0.000924]
[1721740201518,1.433192,66519.0,66518.0,0.000924]
[1721740203300,1.352992,66519.0,66518.0,0.14794391]
[1721740203520,1.052327,66519.0,66518.0,0.14794391]
[1721740204945,1.057327,66519.0,66518.0,0.14794391]
[1721740205370,1.053327,66519.0,66518.0,0.14794391]
[1721740207212,1.19725441,66519.0,66518.0,0.14794391]
[1721740209875,1.49791941,66519.0,66518.0,0.14794391]
[1721740210477,1.19725441,66519.0,66518.0,0.000924]
[1721740210689,1.053327,66519.0,66518.0,0.000924]
[1721740210902,1.053327,66519.0,66518.0,0.14794391]
[1721740211364,0.752662,66519.0,66518.0,0.20972468]
[1721740211588,0.001,66519.0,66518.0,0.28682468]
[1721740211800,0.451997,66519.0,66518.0,0.28682468]
[1721740212227,0.151332,66519.0,66518.0,0.28682468]
[1721740212684,0.752662,66519.0,66518.0,0.28682468]
[1721740212913,1.053327,66519.0,66518.0,0.14794391]
[1721740213342,1.053327,66519.0,66518.0,0.28692468]
[1721740213343,0.752662,66519.0,66518.0,0.28692468]
[1721740214470,0.752662,66519.0,66518.0,0.20982468]
[1721740214690,1.2083932,66519.0,66518.0,0.000924]
[1721740215352,1.133127,66519.0,66518.0,0.000924]
[1721740215599,1.433792,66519.0,66518.0,0.000924]
[1721740215812,1.133127,66519.0,66518.0,0.000924]
[1721740216034,1.433792,66519.0,66518.0,0.000924]
[1721740216251,1.133127,66519.0,66518.0,0.000924]
[1721740217135,1.433792,66519.0,66518.0,0.000924]
[1721740217778,1.133127,66519.0,66518.0,0.000924]
[1721740218186,1.433792,66519.0,66518.0,0.000924]
[1721740218797,1.133127,66519.0,66518.0,0.000924]
[1721740219624,1.433792,66519.0,66518.0,0.000924]
[1721740220032,1.133127,66519.0,66518.0,0.000924]
[1721740220678,1.74545465,66519.0,66518.0,0.000924]
[1721740221714,1.74445465,66519.0,66518.0,0.000924]
[1721740221921,1.540792,66519.0,66518.0,0.001924]
[1721740224146,1.453992,66519.0,66518.0,0.000924]
[1721740224558,1.463992,66519.0,66518.0,0.001924]
[1721740225048,1.452992,66519.0,66518.0,0.000924]
[1721740225469,1.80190238,66519.0,66518.0,0.000924]
[1721740225803,1.79790238,66519.0,66518.0,0.000924]
[1721740226152,1.49723738,66519.0,66518.0,0.000924]
[1721740227316,1.461992,66519.0,66518.0,0.000924]
[1721740227542,1.457992,66519.0,66518.0,0.000924]
[1721740227740,1.452992,66519.0,66518.0,0.000924]
[1721740228094,1.452992,66519.0,66518.0,0.001924]
[1721740228095,1.457992,66519.0,66518.0,0.001924]
[1721740228300,1.461992,66519.0,66518.0,0.001924]
[1721740228649,1.457992,66519.0,66518.0,0.001924]
[1721740228851,1.452992,66519.0,66518.0,0.000924]
[1721740229652,1.458992,66519.0,66518.0,0.001924]
[1721740229849,1.60595465,66519.0,66518.0,0.001924]
[1721740230257,1.458992,66519.0,66518.0,0.001924]
[1721740230461,1.452992,66519.0,66518.0,0.000924]
[1721740230841,10.452992,66519.0,66518.0,0.000924]
[1721740231047,10.49764607,66519.0,66518.0,0.000924]
[1721740231296,10.59995465,66519.0,66518.0,0.000924]
[1721740232049,10.457992,66519.0,66518.0,0.000924]
[1721740232462,10.462992,66519.0,66518.0,0.000924]
[1721740233293,10.52504833,66519.0,66518.0,0.000924]
[1721740233491,10.457992,66519.0,66518.0,0.000924]
[1721740233697,10.459992,66519.0,66518.0,0.000924]
[1721740233869,10.60695465,66519.0,66518.0,0.000924]
[1721740234093,10.60195465,66519.0,66518.0,0.000924]
[1721740234275,10.64668574,66519.0,66518.0,0.000924]
[1721740234449,10.60495465,66519.0,66518.0,0.000924]
[1721740234860,10.59995465,66519.0,66518.0,0.000924]
[1721740235066,10.64468685,66519.0,66518.0,0.000924]
[1721740235273,10.60295465,66519.0,66518.0,0.000924]
[1721740235477,10.67005263,66519.0,66518.0,0.000924]
[1721740235655,10.52308998,66519.0,66518.0,0.000924]
[1721740235863,10.454992,66519.0,66518.0,0.000924]
[1721740237334,10.457992,66519.0,66518.0,0.000924]
[1721740237538,10.54745597,66519.0,66518.0,0.000924]
[1721740238103,10.54745597,66519.0,66518.0,0.14794391]
[1721740238307,10.54745597,66519.0,66518.0,0.21294391]
[1721740238915,10.59164964,66519.0,66518.0,0.21294391]
[1721740239177,10.49918567,66519.0,66518.0,0.21294391]
[1721740239361,10.49718567,66519.0,66518.0,0.21294391]
[1721740239769,10.452992,66519.0,66518.0,0.21294391]
[1721740240390,10.152327,66519.0,66518.0,0.21294391]
[1721740240599,10.16432592,66519.0,66518.0,0.21294391]
[1721740241185,10.052327,66519.0,66518.0,0.21294391]
[1721740244089,10.052327,66519.0,66518.0,0.14794391]
[1721740245172,10.054327,66519.0,66518.0,0.14794391]
[1721740245346,10.58265465,66519.0,66518.0,0.000924]
[1721740245865,10.58065465,66519.0,66518.0,0.000924]
[1721740246626,10.57765465,66519.0,66518.0,0.000924]
[1721740247216,10.57965465,66519.0,66518.0,0.000924]
[1721740247998,10.58165465,66519.0,66518.0,0.000924]
[1721740248314,10.57965465,66519.0,66518.0,0.000924]
[1721740248472,10.58165465,66519.0,66518.0,0.000924]
[1721740248679,10.58465465,66519.0,66518.0,0.000924]
[1721740250407,10.58165465,66519.0,66518.0,0.000924]
[1721740250608,10.58565465,66519.0,66518.0,0.000924]
[1721740252370,10.67335465,66519.0,66518.0,0.000924]
[1721740255213,10.526392,66519.0,66518.0,0.000924]
[1721740256377,10.448692,66519.0,66518.0,0.000924]
[1721740256578,10.448692,66519.0,66518.0,0.12583053]
[1721740256968,10.448692,66519.0,66518.0,0.12583041]
[1721740257572,10.148027,66519.0,66518.0,0.12583041]
[1721740257974,10.448692,66519.0,66518.0,0.12583041]
[1721740259635,10.59565465,66519.0,66518.0,0.12583041]
[1721740260076,10.448692,66519.0,66518.0,0.12583042]
[1721740260701,10.148027,66519.0,66518.0,0.12583042]
[1721740261125,10.448692,66519.0,66518.0,0.12583042]
[1721740262678,10.448692,66519.0,66518.0,0.000924]
[1721740262855,10.97701965,66519.0,66518.0,0.000924]
[1721740263056,10.67635465,66519.0,66518.0,0.000924]
[1721740263618,10.81091001,66519.0,66518.0,0.000924]
[1721740263821,10.81091286,66519.0,66518.0,0.000924]
[1721740264443,10.86091286,66519.0,66518.0,0.000924]
[1721740264647,10.81091286,66519.0,66518.0,0.000924]
[1721740265449,11.11157786,66519.0,66518.0,0.000924]
[1721740266016,10.97701965,66519.0,66518.0,0.000924]
[1721740266379,11.11163231,66519.0,66518.0,0.000924]
[1721740266582,10.97701965,66519.0,66518.0,0.000924]
[1721740266779,10.81097898,66519.0,66518.0,0.000924]
[1721740267181,10.86097898,66519.0,66518.0,0.000924]
[1721740267406,11.11164398,66519.0,66518.0,0.000924]
[1721740268559,10.67635465,66519.0,66518.0,0.000924]
[1721740268720,10.81102361,66519.0,66518.0,0.000924]
[1721740268923,11.11168861,66519.0,66518.0,0.000924]
[1721740269953,11.1116949,66519.0,66518.0,0.000924]
[1721740271337,10.8110299,66519.0,66518.0,0.000924]
[1721740271744,10.8610299,66519.0,66518.0,0.000924]
[1721740271903,11.1616949,66519.0,66518.0,0.000924]
[1721740272104,11.22852931,66519.0,66518.0,0.000924]
[1721740272433,11.22683888,66519.0,66518.0,0.000924]
[1721740272546,11.17683888,66519.0,66518.0,0.000924]
[1721740273356,11.17283888,66519.0,66518.0,0.000924]
[1721740273959,11.17783888,66519.0,66518.0,0.001924]
[1721740274084,11.18683888,66519.0,66518.0,0.002924]
[1721740274489,11.23683888,66519.0,66518.0,0.002924]
[1721740274886,11.60190388,66519.0,66518.0,0.002924]
[1721740275101,1.900133,66512.0,66511.0,0.000924]
[1721740275306,2.08765223,66512.0,66511.0,0.000924]
[1721740275711,2.13765223,66512.0,66511.0,0.000924]
[1721740276122,2.43834923,66512.0,66511.0,0.000924]
[1721740276393,2.44734923,66512.0,66511.0,0.001924]
[1721740276715,2.75271188,66512.0,66511.0,0.001924]
[1721740278551,2.76171188,66512.0,66511.0,0.002924]
[1721740278765,2.76171188,66512.0,66506.0,0.009306]
[1721740278947,0.226473,66501.0,66500.0,0.05148927]
[1721740279147,1.11563406,66501.0,66500.0,0.05148927]
[1721740279394,2.21393425,66501.0,66500.0,0.05148927]
[1721740279638,2.38027423,66501.0,66500.0,0.05148927]
[1721740279844,2.47723688,66501.0,66500.0,0.05148927]
[1721740280042,2.52723688,66501.0,66500.0,0.05148927]
[1721740280218,2.53523688,66501.0,66500.0,0.05248927]
[1721740280777,2.52723688,66501.0,66500.0,0.05148927]
[1721740281412,3.01699743,66501.0,66500.0,2.7e-07]
[1721740281817,2.88265679,66501.0,66500.0,2.7e-07]
[1721740282012,2.88965679,66501.0,66500.0,0.00100027]
[1721740282461,2.88965679,66501.0,66498.0,0.0152447]
[1721740282462,2.34163323,66499.0,66498.0,0.0152447]
[1721740282663,0.300819,66485.0,66479.0,0.0661]
[1721740282920,1.46547554,66485.0,66477.0,0.0661]
[1721740283124,2.23364223,66485.0,66477.0,0.0661]
[1721740283333,2.53900488,66485.0,66471.0,0.002]
[1721740283518,2.58900488,66485.0,66474.0,0.0661]
[1721740283725,2.76219791,66485.0,66474.0,0.0661]
[1721740283926,2.65050488,66485.0,66474.0,0.0661]
[1721740284233,2.65050488,66485.0,66471.0,0.002]
[1721740284234,1.353951,66472.0,66471.0,0.002]
[1721740286226,1.357951,66472.0,66471.0,0.002]
[1721740287614,1.360951,66472.0,66471.0,0.002]
[1721740287823,1.357951,66472.0,66471.0,0.002]
[1721740288247,1.361951,66472.0,66471.0,0.002]
[1721740288443,0.760195,66472.0,66471.0,0.144]
[1721740288983,0.154439,66472.0,66471.0,0.29120068]
[1721740289189,0.756195,66472.0,66471.0,0.29120068]
[1721740289395,0.759195,66472.0,66471.0,0.29120068]
[1721740289805,1.056073,66472.0,66471.0,0.29120068]
[1721740290266,1.053073,66472.0,66471.0,0.29220068]
[1721740290827,0.752195,66472.0,66471.0,0.29220068]
[1721740291247,0.752195,66472.0,66471.0,0.29312468]
[1721740291456,1.10784504,66472.0,66471.0,0.29294391]
[1721740291950,1.053073,66472.0,66471.0,0.29294391]
[1721740292148,0.752195,66472.0,66471.0,0.29294391]
[1721740292584,0.451276,66478.0,66477.0,0.00018077]
[1721740292843,0.752127,66478.0,66477.0,0.14720068]
[1721740292996,0.451276,66478.0,66477.0,0.14720068]
[1721740293195,0.752127,66478.0,66477.0,0.28770068]
[1721740294229,0.451276,66478.0,66477.0,0.28770068]
[1721740294494,0.752127,66478.0,66477.0,0.28770068]
[1721740294988,0.451276,66478.0,66477.0,0.28870068]
[1721740295192,0.300824,66484.0,66482.0,0.00018077]
[1721740295398,0.300824,66484.0,66477.0,0.29844691]
[1721740295399,0.04921246,66485.0,66484.0,0.29089277]
[1721740295600,0.04921246,66485.0,66484.0,0.2905086]
[1721740295770,0.150384,66496.0,66495.0,0.00018077]
[1721740295977,0.451153,66496.0,66495.0,0.17712149]
[1721740296151,0.751922,66496.0,66495.0,0.17712149]
[1721740296534,0.300727,66506.0,66503.0,0.00018077]
[1721740296717,0.07432942,66518.0,66503.0,0.17712149]
[1721740296718,0.150516,66504.0,66503.0,0.17712149]
[1721740296917,0.751982,66504.0,66503.0,0.17712149]
[1721740297423,1.1279132,66504.0,66503.0,0.17694072]
[1721740297684,1.1279132,66504.0,66503.0,0.17712149]
[1721740297897,0.8271802,66504.0,66503.0,0.17712149]
[1721740298206,1.1279132,66504.0,66503.0,0.17694072]
[1721740298446,1.1279132,66504.0,66503.0,0.17712149]
[1721740298792,1.4286462,66504.0,66503.0,0.02992081]
[1721740299241,1.05266,66498.0,66497.0,0.0655]
[1721740299642,1.35342,66498.0,66497.0,0.0655]
[1721740300069,0.150391,66493.0,66492.0,0.0655]
[1721740300225,0.451215,66487.0,66486.0,0.0655]
[1721740300429,1.052835,66487.0,66486.0,0.0655]
[1721740301356,0.752092,66481.0,66480.0,0.0655]
[1721740301537,1.052929,66481.0,66480.0,0.0655]
[1721740301738,1.353766,66481.0,66480.0,0.0655]
[1721740302091,1.052929,66481.0,66480.0,0.0655]
[1721740303246,0.001,66485.0,66474.0,0.0789]
[1721740303247,0.902592,66475.0,66474.0,0.0634]
[1721740303454,1.053024,66475.0,66474.0,0.0634]
[1721740306252,0.75207,66483.0,66482.0,0.0609]